[Event "8th Mersin Open 2024"]
[Site "Mersin"]
[Date "2024.11.11"]
[Round "2"]
[White "Lobanov, Sergei"]
[Black "Tezcan, Alper"]
[Result "1-0"]
[ECO "D35"]
[WhiteElo "2503"]
[BlackElo "2002"]
[Annotator "TA"]
[PlyCount "119"]
[EventDate "2024.11.10"]
[EventType "swiss"]
[EventCountry "TUR"]
[SourceTitle "playchess.com"]
[Source "ChessBase"]
[SourceQuality "1"]
[TimeControl "5400+30"]

{[%evp 12,119,18,4,21,25,27,26,20,22,16,17,19,9,15,7,16,5,7,-8,31,-20,-8,-7,0,-5,-3,-7,-26,-11,-18,-40,-32,-33,-14,-36,-11,-15,26,0,31,16,21,10,17,10,43,11,8,0,0,0,0,0,0,-15,10,0,26,14,18,12,12,8,8,0,7,0,0,0,14,13,10,10,16,13,18,15,64,48,125,129,104,110,111,111,250,248,238,250,241,242,253,249,258,249,310,295,402,408,409,397,365,352,411,405,649,631,731,610]} 1. d4 {[%emt 0:01:00]} d5 {[%emt 0:01:00]} 2. c4 {[%emt 0:00:00]} e6 {[%emt 0:00:30]} 3. Nc3 {[%emt 0:00:00]} Nf6 {[%emt 0:00:30]} 4. cxd5 {[%emt 0:00:00]} exd5 {[%emt 0:00:00]} 5. Bg5 {[%emt 0:00:00][%cal Bc1g5,Bg5h4,Bh4g3,Bg3f4][%mdl 32]} Be7 {[%emt 0:00:00]} 6. e3 {[%emt 0:00:00]} h6 {[%emt 0:00:00]} 7. Bh4 {[%emt 0:00:00]} Bg4 {[%emt 0:00:00]} 8. Qc2 {[%emt 0:00:30]} O-O {[%emt 0:00:30]} 9. h3 {[%emt 0:00:30]} Be6 {[%emt 0:00:00] White has an edge.} 10. Nf3 {[%emt 0:00:00]} Ne8 {[%emt 0:02:00]} 11. Bg3 {[%emt 0:04:00]} Bd6 {[%emt 0:00:30]} 12. Ne5 {[%emt 0:00:30]} (12. Bxd6 {simplifies} Nxd6 13. Bd3 Nd7 14. Ne2) 12... Nc6 {[%emt 0:01:30]} 13. Be2 {[%emt 0:12:30]} Ne7 {[%emt 0:07:30]} 14. Bf4 {[%emt 0:13:30]} c6 {[%emt 0:16:30]} 15. g4 {[%emt 0:08:30]} c5 {[%emt 0:25:30]} 16. Nb5 {[%emt 0:06:30]} (16. dxc5 $14 Bxc5 17. O-O) 16... Rc8 {[%emt 0:04:30] White must now prevent ...cxd4.} 17. Nxd6 {[%emt 0:03:30]} (17. Nxa7 $2 Qa5+ 18. b4 Qxa7 $19) 17... Nxd6 {[%emt 0:00:30]} 18. dxc5 {[%emt 0:00:30]} Qa5+ {[%emt 0:02:30]} 19. Kf1 {[%emt 0:11:30]} Rxc5 {[%emt 0:05:30]} 20. Qd1 {[%emt 0:00:30][%cal Oe5d7]} Qb6 {[%emt 0:02:30][%cal Od6e4]} 21. Nd3 {[%emt 0:09:30]} Rcc8 {[%emt 0:10:18]} 22. Qb3 {[%emt 0:04:30]} Qd8 {[%emt 0:05:14][%cal Od5d4]} 23. Qb4 {[%emt 0:00:30]} Nc4 {[%emt 0:08:35]} 24. b3 {[%emt 0:02:30]} Nb6 {[%emt 0:01:12]} 25. Kg2 {[%emt 0:02:30]} Nc6 {[%emt 0:01:04]} 26. Qd6 {[%emt 0:05:21]} (26. Qd2 $5) 26... Qf6 {[%emt 0:01:11]} 27. Bg3 {[%emt 0:00:16]} Rfd8 {[%emt 0:00:30]} 28. Qf4 {[%emt 0:00:10] With the idea Qxf6.} Qxf4 {[%emt 0:04:04]} 29. Nxf4 {[%emt 0:02:33]} (29. Bxf4 {simplifies} d4 30. e4 Nd7 31. Bg3) 29... d4 {[%emt 0:00:33]} 30. Nxe6 {[%emt 0:06:42]} fxe6 {[%emt 0:00:07]} 31. exd4 {[%emt 0:01:37]} Nxd4 {[%emt 0:00:44]} 32. Bd1 {[%emt 0:00:30]} Nd5 {[%emt 0:00:08]} 33. Be5 {[%emt 0:03:04]} Nc3 {[%emt 0:00:12]} 34. Re1 {[%emt 0:01:05]} Nxd1 {[%emt 0:00:42]} 35. Raxd1 {[%emt 0:00:43]} Nc6 {[%emt 0:00:17] [#] ...Rxd1 is the strong threat.} 36. Bc3 {[%emt 0:02:14]} Kf7 {[%emt 0:00:11]} 37. Rc1 {[%emt 0:00:59]} Ne7 {[%emt 0:00:32]} 38. Be5 {[%emt 0:00:17]} Nc6 {[%emt 0:00:39]} 39. Bc3 {[%emt 0:00:36]} Ne7 {[%emt 0:00:29]} 40. Bb4 {[%emt 0:00:49]} Nc6 {[%emt 0:00:21]} 41. Bc5 {[%emt 0:00:04]} Rd2 {[%emt 0:01:47]} 42. a4 {[%emt 0:00:19]} Rcd8 {[%emt 0:00:22]} 43. Re3 {[%emt 0:00:19]} R2d3 {[%emt 0:01:08]} 44. b4 {[%emt 0:00:00] And now b5 would win.} Rxe3 {[%emt 0:00:38]} (44... a6 $11) 45. Bxe3 $14 {[%emt 0:00:23] b5 would now be deadly.} Nxb4 $11 {[%emt 0:00:30][%mdl 4096] Endgame. KRB-KRN} (45... Rd7 $1 $14) 46. Rc7+ $16 {[%emt 0:00:30]} (46. Bxa7 $6 Nd5 $14) 46... Kf6 {[%emt 0:00:30]} 47. Rxb7 {[%emt 0:00:30] White is more active.} a5 {[%emt 0:00:30]} 48. Bb6 {[%emt 0:00:30]} Ra8 {[%emt 0:00:30] Loses the game.} (48... Rd5 $16) 49. Bd4+ $18 {[%emt 0:00:30]} e5 {[%emt 0:00:30]} 50. Rb6+ {[%emt 0:00:30]} Kf7 {[%emt 0:00:30]} 51. Bxe5 {[%emt 0:00:30]} Ra7 {[%emt 0:00:00] Wards off Rb7+} 52. Rb5 {[%emt 0:00:27]} Nc6 {[%emt 0:00:05]} 53. Bc3 {[%emt 0:00:39]} Ke6 {[%emt 0:00:04]} 54. h4 {[%emt 0:00:04][%cal Bh3h4,Bh4h5][%mdl 32]} Kd6 {[%emt 0:00:40]} 55. h5 {[%emt 0:00:33]} Re7 {[%emt 0:00:23]} 56. f3 {[%emt 0:00:32][%cal Bf2f3,Bf3f4][%mdl 32]} (56. Bxa5 Re4 $18) 56... Ra7 {[%emt 0:00:08]} 57. Kg3 {[%emt 0:00:00]} Ke6 {[%emt 0:00:13]} 58. g5 {[%emt 0:01:15]} Kd6 {[%emt 0:01:04]} (58... Rd7 $142 59. Kg4 (59. Bxa5 Nxa5 60. Rxa5 hxg5 $18) 59... hxg5 60. Rxg5 (60. Kxg5 Kf7 $18) 60... Nd4) 59. Kg4 {[%emt 0:00:30]} Ke6 {[%emt 0:00:00]} 60. f4 {[%emt 0:00:00] Weighted Error Value: White=0.06 (flawless) /Black=0.20 (precise) .  Mistake:       	White=1     	Black=4      Inaccurate:     	White=2     	Black=6      OK:         	White=23    	Black=22     Best:        	White=4     	Black=1} 1-0

[Event "8th Mersin Open 2024"]
[Site "Mersin"]
[Date "2024.11.11"]
[Round "2"]
[White "Ikonnikov, Vyacheslav"]
[Black "Akkara, Omer"]
[Result "1-0"]
[ECO "B39"]
[WhiteElo "2465"]
[BlackElo "2103"]
[Annotator "RC"]
[PlyCount "122"]
[EventDate "2024.11.10"]
[EventType "swiss"]
[EventCountry "TUR"]
[SourceTitle "playchess.com"]
[Source "ChessBase"]
[SourceQuality "1"]
[TimeControl "5400+30"]

1. Nf3 {[%emt 0:01:00]} Nf6 {[%emt 0:01:00]} 2. c4 {[%emt 0:00:00]} c5 {[%emt 0:00:30]} 3. d4 {[%emt 0:00:00]} cxd4 {[%emt 0:00:00]} 4. Nxd4 {[%emt 0:00:30]} Nc6 {[%emt 0:00:00]} 5. Nc3 {[%emt 0:00:00]} g6 {[%emt 0:00:00]} 6. e4 {[%emt 0:01:00]} Bg7 {[%emt 0:00:00]} 7. Be3 {[%emt 0:00:30]} Ng4 {[%emt 0:01:30]} 8. Qxg4 {[%emt 0:00:30]} Nxd4 {[%emt 0:00:00]} 9. Qd1 {[%emt 0:00:30]} Ne6 {[%emt 0:00:00]} 10. Qd2 {[%emt 0:01:30]} d6 {[%emt 0:00:30]} 11. Be2 {[%emt 0:01:30]} b6 {[%emt 0:00:30]} 12. O-O {[%emt 0:02:30]} Bb7 {[%emt 0:01:30]} 13. f3 {[%emt 0:00:30]} O-O {[%emt 0:01:30]} 14. Rac1 {[%emt 0:01:30]} Rc8 {[%emt 0:00:30]} 15. Rfd1 {[%emt 0:01:30]} Qd7 {[%emt 0:01:30]} 16. b4 {[%emt 0:01:30]} f5 {[%emt 0:04:30]} 17. exf5 {[%emt 0:00:30]} gxf5 {[%emt 0:00:30]} 18. Nd5 {[%emt 0:01:30]} Kh8 {[%emt 0:02:30]} 19. Bf1 {[%emt 0:02:30]} Rf7 {[%emt 0:05:30]} 20. Re1 {[%emt 0:02:30]} Nf8 {[%emt 0:02:30]} 21. Nf4 {[%emt 0:02:30]} e5 {[%emt 0:02:30]} 22. Nd5 {[%emt 0:00:30]} Ng6 {[%emt 0:04:30]} 23. Rcd1 {[%emt 0:01:30]} Rg8 {[%emt 0:08:30]} 24. Kh1 {[%emt 0:00:30]} Bf8 {[%emt 0:04:30]} 25. a4 {[%emt 0:23:30]} f4 {[%emt 0:02:30]} 26. Bf2 {[%emt 0:00:30]} Qf5 {[%emt 0:00:00]} 27. Bd3 {[%emt 0:01:30]} Qh5 {[%emt 0:00:00]} 28. Be4 {[%emt 0:00:30]} Nh4 {[%emt 0:02:30]} 29. Bxh4 {[%emt 0:02:30]} Qxh4 {[%emt 0:00:00]} 30. Re2 {[%emt 0:00:30]} Rg5 {[%emt 0:02:00]} 31. Qe1 {[%emt 0:01:30]} Qh6 {[%emt 0:00:30]} 32. a5 {[%emt 0:03:30]} bxa5 {[%emt 0:01:30]} 33. bxa5 {[%emt 0:00:00]} Rh5 {[%emt 0:00:30]} 34. Qg1 {[%emt 0:02:00]} Qg5 {[%emt 0:04:30]} 35. Rb1 {[%emt 0:00:30]} Ba6 {[%emt 0:04:30]} 36. Rb8 {[%emt 0:04:30]} Bxc4 {[%emt 0:02:30]} 37. Rc2 {[%emt 0:00:30]} Qg3 {[%emt 0:01:30]} 38. h3 {[%emt 0:10:30]} Bxd5 {[%emt 0:04:30]} 39. Bxd5 {[%emt 0:00:30]} Rf6 {[%emt 0:00:00]} 40. Qf2 {[%emt 0:13:26]} e4 {[%emt 0:06:00]} 41. fxe4 {[%emt 0:05:34]} Qd3 {[%emt 0:04:30]} 42. Rd2 {[%emt 0:02:57]} Rxh3+ {[%emt 0:05:30]} 43. Kg1 {[%emt 0:00:30]} Qg3 {[%emt 0:00:30]} 44. Rxf8+ {[%emt 0:00:11]} Rxf8 {[%emt 0:02:30]} 45. Qd4+ {[%emt 0:00:06]} Qg7 {[%emt 0:00:30]} 46. Qxg7+ {[%emt 0:00:30]} Kxg7 {[%emt 0:00:30]} 47. gxh3 {[%emt 0:00:00]} Rf6 {[%emt 0:00:00]} 48. Rg2+ {[%emt 0:00:49]} Kh6 {[%emt 0:00:00]} 49. Kf2 {[%emt 0:00:00]} Kh5 {[%emt 0:00:30]} 50. Rg7 {[%emt 0:01:19]} h6 {[%emt 0:00:00]} 51. Rxa7 {[%emt 0:00:16]} Kh4 {[%emt 0:00:00]} 52. Rf7 {[%emt 0:00:19]} Rg6 {[%emt 0:00:30]} 53. a6 {[%emt 0:00:37]} Kxh3 {[%emt 0:00:00]} 54. a7 {[%emt 0:00:19]} Rg2+ {[%emt 0:00:00]} 55. Kf3 {[%emt 0:00:00]} Rg3+ {[%emt 0:00:30]} 56. Kxf4 {[%emt 0:00:01]} Rg4+ {[%emt 0:00:00]} 57. Kf5 {[%emt 0:00:15]} Rg5+ {[%emt 0:00:00]} 58. Ke6 {[%emt 0:00:30]} h5 {[%emt 0:00:00]} 59. a8=Q {[%emt 0:00:15]} h4 {[%emt 0:00:00]} 60. Qa1 {[%emt 0:00:14]} Re5+ {[%emt 0:00:00]} 61. Kxd6 {[%emt 0:00:15]} Rg5 {[%emt 0:00:00]} 1-0

[Event "8th Mersin Open 2024"]
[Site "Mersin"]
[Date "2024.11.11"]
[Round "2"]
[White "Yermolinsky, Alex"]
[Black "Zerey, Demhat"]
[Result "0-1"]
[ECO "D63"]
[WhiteElo "2417"]
[BlackElo "2194"]
[Annotator "RC"]
[PlyCount "94"]
[EventDate "2024.11.10"]
[EventType "swiss"]
[EventCountry "TUR"]
[SourceTitle "playchess.com"]
[Source "ChessBase"]
[SourceQuality "1"]
[TimeControl "5400+30"]

1. d4 {[%emt 0:01:00]} d5 {[%emt 0:01:00]} 2. c4 {[%emt 0:00:00]} e6 {[%emt 0:01:30]} 3. Nc3 {[%emt 0:01:00]} Be7 {[%emt 0:00:00]} 4. Nf3 {[%emt 0:01:30]} Nf6 {[%emt 0:00:00]} 5. Bg5 {[%emt 0:02:30]} h6 {[%emt 0:00:30]} 6. Bh4 {[%emt 0:00:30]} O-O {[%emt 0:00:00]} 7. e3 {[%emt 0:00:00]} Nbd7 {[%emt 0:00:00]} 8. Rc1 {[%emt 0:01:00]} c5 {[%emt 0:00:30]} 9. dxc5 {[%emt 0:13:30]} dxc4 {[%emt 0:00:30]} 10. Bxc4 {[%emt 0:03:30]} Nxc5 {[%emt 0:01:30]} 11. O-O {[%emt 0:00:30]} a6 {[%emt 0:02:30]} 12. Be2 {[%emt 0:02:30]} b5 {[%emt 0:09:30]} 13. b4 {[%emt 0:02:30]} Qxd1 {[%emt 0:09:30]} 14. Rfxd1 {[%emt 0:00:30]} Ncd7 {[%emt 0:00:30]} 15. a3 {[%emt 0:01:30]} Nb6 {[%emt 0:08:30]} 16. e4 {[%emt 0:15:30]} g5 {[%emt 0:07:30]} 17. Bg3 {[%emt 0:00:00]} Bb7 {[%emt 0:00:30]} 18. Bc7 {[%emt 0:08:00]} Nbd7 {[%emt 0:07:30]} 19. e5 {[%emt 0:01:30]} Nd5 {[%emt 0:00:00]} 20. Nxd5 {[%emt 0:00:30]} Bxd5 {[%emt 0:00:00]} 21. Nd4 {[%emt 0:00:30]} Rac8 {[%emt 0:08:30]} 22. Nf5 {[%emt 0:09:30]} exf5 {[%emt 0:18:30]} 23. Rxd5 {[%emt 0:01:30]} Nb6 {[%emt 0:01:30]} 24. Rdd1 {[%emt 0:00:00]} Na4 {[%emt 0:06:51]} 25. g3 {[%emt 0:06:00]} Kg7 {[%emt 0:06:31]} 26. Rd7 {[%emt 0:09:55]} Bd8 {[%emt 0:01:36]} 27. e6 {[%emt 0:02:04]} Rxc7 {[%emt 0:03:08]} 28. Rcxc7 {[%emt 0:00:30]} Bxc7 {[%emt 0:00:00]} 29. Rxc7 {[%emt 0:00:00]} Re8 {[%emt 0:02:21]} 30. Bh5 {[%emt 0:03:31]} Rxe6 {[%emt 0:00:38]} 31. Rxf7+ {[%emt 0:00:30]} Kg8 {[%emt 0:00:00]} 32. Rxf5 {[%emt 0:00:00]} Rd6 {[%emt 0:00:12]} 33. Kg2 {[%emt 0:05:10]} Nb6 {[%emt 0:02:28]} 34. Rc5 {[%emt 0:01:38]} Kg7 {[%emt 0:00:34]} 35. f4 {[%emt 0:01:59]} gxf4 {[%emt 0:00:30]} 36. gxf4 {[%emt 0:00:08]} Kf6 {[%emt 0:01:29]} 37. Kg3 {[%emt 0:01:52]} Nc4 {[%emt 0:00:40]} 38. a4 {[%emt 0:01:53]} Nd2 {[%emt 0:00:09]} 39. Kg4 {[%emt 0:00:26]} bxa4 {[%emt 0:00:32]} 40. Rf5+ {[%emt 0:00:12]} Ke6 {[%emt 0:00:29]} 41. Ra5 {[%emt 0:00:13]} Rb6 {[%emt 0:00:44]} 42. Rxa4 {[%emt 0:02:26]} Ne4 {[%emt 0:00:03]} 43. Bg6 {[%emt 0:00:43]} Nf6+ {[%emt 0:00:16]} 44. Kh4 {[%emt 0:00:15]} Nd5 {[%emt 0:00:53]} 45. f5+ {[%emt 0:00:06]} Kf6 {[%emt 0:01:10]} 46. Kh5 {[%emt 0:00:07]} Kg7 {[%emt 0:00:00]} 47. Ra2 {[%emt 0:01:34]} Rxb4 {[%emt 0:00:25]} 0-1

[Event "8th Mersin Open 2024"]
[Site "Mersin"]
[Date "2024.11.11"]
[Round "2"]
[White "Cheng, Bindi"]
[Black "Zahedifar, Anahita"]
[Result "1/2-1/2"]
[ECO "A07"]
[WhiteElo "2368"]
[BlackElo "2008"]
[Annotator "RC"]
[PlyCount "77"]
[EventDate "2024.11.10"]
[EventType "swiss"]
[EventCountry "TUR"]
[SourceTitle "playchess.com"]
[Source "ChessBase"]
[SourceQuality "1"]
[TimeControl "5400+30"]

1. Nf3 {[%emt 0:04:00]} d5 {[%emt 0:01:00]} 2. g3 {[%emt 0:00:00]} g6 {[%emt 0:00:30]} 3. Bg2 {[%emt 0:00:00]} Bg7 {[%emt 0:00:30]} 4. O-O {[%emt 0:00:30]} e5 {[%emt 0:00:00]} 5. c4 {[%emt 0:00:00]} dxc4 {[%emt 0:00:00]} 6. Qa4+ {[%emt 0:00:00]} Nc6 {[%emt 0:00:30]} 7. Qxc4 {[%emt 0:00:30]} Nge7 {[%emt 0:01:30]} 8. Nc3 {[%emt 0:00:30]} O-O {[%emt 0:01:30]} 9. d3 {[%emt 0:00:00]} h6 {[%emt 0:01:30]} 10. Nd2 {[%emt 0:06:00]} a6 {[%emt 0:05:30]} 11. Nde4 {[%emt 0:01:30]} Be6 {[%emt 0:02:30]} 12. Qa4 {[%emt 0:00:30]} b5 {[%emt 0:01:30]} 13. Qd1 {[%emt 0:00:30]} b4 {[%emt 0:00:30]} 14. Na4 {[%emt 0:03:30]} Bd5 {[%emt 0:04:30]} 15. b3 {[%emt 0:05:30]} f5 {[%emt 0:02:30]} 16. Nec5 {[%emt 0:00:30]} Bxg2 {[%emt 0:01:30]} 17. Kxg2 {[%emt 0:00:00]} f4 {[%emt 0:05:30]} 18. Kg1 {[%emt 0:07:00]} Qc8 {[%emt 0:08:30]} 19. Bb2 {[%emt 0:09:30]} Qh3 {[%emt 0:00:30]} 20. Kh1 {[%emt 0:14:30]} fxg3 {[%emt 0:13:30]} 21. fxg3 {[%emt 0:00:30]} Nf5 {[%emt 0:00:30]} 22. Ne4 {[%emt 0:01:30]} Ncd4 {[%emt 0:02:30]} 23. Bxd4 {[%emt 0:00:30]} exd4 {[%emt 0:00:30]} 24. Nb2 {[%emt 0:02:30]} Be5 {[%emt 0:04:30]} 25. Rf3 {[%emt 0:06:30]} Ne3 {[%emt 0:02:30]} 26. Qg1 {[%emt 0:00:30]} Rxf3 {[%emt 0:06:30]} 27. exf3 {[%emt 0:00:30]} Rf8 {[%emt 0:00:30]} 28. Qf2 {[%emt 0:01:30]} Qh5 {[%emt 0:06:30]} 29. f4 {[%emt 0:04:30]} g5 {[%emt 0:01:30]} 30. Rg1 {[%emt 0:05:30]} Kh8 {[%emt 0:02:30]} 31. Nc4 {[%emt 0:05:30]} Nxc4 {[%emt 0:04:30]} 32. bxc4 {[%emt 0:00:30]} gxf4 {[%emt 0:00:30]} 33. g4 {[%emt 0:04:32]} Qh3 {[%emt 0:00:37]} 34. Rg3 {[%emt 0:07:31]} Qh4 {[%emt 0:01:45]} 35. Qf3 {[%emt 0:00:30]} fxg3 {[%emt 0:06:52]} 36. Qxf8+ {[%emt 0:00:33]} Kh7 {[%emt 0:00:02]} 37. Qf7+ {[%emt 0:05:00]} Kh8 {[%emt 0:00:31]} 38. Qe8+ {[%emt 0:01:17]} Kh7 {[%emt 0:00:02]} 39. Qf7+ {[%emt 0:00:07]} 1/2-1/2

[Event "8th Mersin Open 2024"]
[Site "Mersin"]
[Date "2024.11.11"]
[Round "2"]
[White "Bicer, Atakan Mert"]
[Black "Kazimova, Narmin"]
[Result "1/2-1/2"]
[ECO "C74"]
[WhiteElo "2342"]
[BlackElo "2155"]
[Annotator "RC"]
[PlyCount "111"]
[EventDate "2024.11.10"]
[EventType "swiss"]
[EventCountry "TUR"]
[SourceTitle "playchess.com"]
[Source "ChessBase"]
[SourceQuality "1"]
[TimeControl "5400+30"]

1. e4 {[%emt 0:01:00]} e5 {[%emt 0:01:00]} 2. Nf3 {[%emt 0:00:30]} Nc6 {[%emt 0:00:00]} 3. Bb5 {[%emt 0:00:00]} a6 {[%emt 0:01:00]} 4. Ba4 {[%emt 0:00:00]} d6 {[%emt 0:00:00]} 5. c3 {[%emt 0:01:30]} f5 {[%emt 0:00:00]} 6. exf5 {[%emt 0:03:30]} Bxf5 {[%emt 0:00:30]} 7. O-O {[%emt 0:00:30]} Bd3 {[%emt 0:00:00]} 8. Re1 {[%emt 0:01:30]} Be7 {[%emt 0:00:00]} 9. Re3 {[%emt 0:02:30]} e4 {[%emt 0:25:30]} 10. Ne1 {[%emt 0:14:30]} Bxb1 {[%emt 0:10:30]} 11. Rxb1 {[%emt 0:00:30]} d5 {[%emt 0:08:30]} 12. d3 {[%emt 0:03:30]} Nf6 {[%emt 0:01:30]} 13. Re2 {[%emt 0:11:30]} Qd6 {[%emt 0:10:30]} 14. dxe4 {[%emt 0:03:30]} dxe4 {[%emt 0:12:30]} 15. Bg5 {[%emt 0:08:30]} O-O-O {[%emt 0:10:36]} 16. Qxd6 {[%emt 0:07:30]} Rxd6 {[%emt 0:00:02]} 17. Bc2 {[%emt 0:07:30]} Rhd8 {[%emt 0:02:08]} 18. Bxf6 {[%emt 0:05:30]} Bxf6 {[%emt 0:00:30]} 19. Bxe4 {[%emt 0:00:30]} h6 {[%emt 0:00:40]} 20. Bxc6 {[%emt 0:01:30]} Rxc6 {[%emt 0:00:30]} 21. Nf3 {[%emt 0:00:30]} Rb6 {[%emt 0:05:26]} 22. Rbe1 {[%emt 0:00:30]} a5 {[%emt 0:01:36]} 23. a4 {[%emt 0:00:30]} Kb8 {[%emt 0:05:43]} 24. g4 {[%emt 0:04:30]} Rd5 {[%emt 0:01:45]} 25. Kg2 {[%emt 0:02:01]} Rc5 {[%emt 0:00:11]} 26. h4 {[%emt 0:02:36]} Rc4 {[%emt 0:01:23]} 27. Kg3 {[%emt 0:00:31]} g5 {[%emt 0:01:25]} 28. hxg5 {[%emt 0:02:04]} Bxg5 {[%emt 0:00:29]} 29. Re4 {[%emt 0:04:48]} Rxe4 {[%emt 0:00:30]} 30. Rxe4 {[%emt 0:00:00]} Rxb2 {[%emt 0:00:04]} 31. Nxg5 {[%emt 0:00:34]} hxg5 {[%emt 0:00:01]} 32. Re5 {[%emt 0:00:00]} Rb3 {[%emt 0:01:29]} 33. Rxg5 {[%emt 0:00:24]} Rxc3+ {[%emt 0:00:30]} 34. f3 {[%emt 0:00:00]} c5 {[%emt 0:00:13]} 35. Re5 {[%emt 0:02:18]} Kc7 {[%emt 0:00:30]} 36. g5 {[%emt 0:00:00]} Kd6 {[%emt 0:00:52]} 37. g6 {[%emt 0:01:22]} Kxe5 {[%emt 0:00:25]} 38. g7 {[%emt 0:00:05]} Rc1 {[%emt 0:00:30]} 39. Kg2 {[%emt 0:00:11]} Rc2+ {[%emt 0:00:22]} 40. Kh3 {[%emt 0:01:21]} Rc3 {[%emt 0:00:07]} 41. g8=Q {[%emt 0:01:25]} Rxf3+ {[%emt 0:00:04]} 42. Kg4 {[%emt 0:01:04]} Rf4+ {[%emt 0:00:15]} 43. Kg5 {[%emt 0:00:00]} Rb4 {[%emt 0:00:27]} 44. Qe8+ {[%emt 0:03:08]} Kd4 {[%emt 0:00:32]} 45. Qd8+ {[%emt 0:00:48]} Kc3 {[%emt 0:00:28]} 46. Qxa5 {[%emt 0:00:51]} b6 {[%emt 0:00:01]} 47. Qa6 {[%emt 0:01:04]} Kb2 {[%emt 0:02:08]} 48. a5 {[%emt 0:01:44]} c4 {[%emt 0:00:01]} 49. axb6 {[%emt 0:02:15]} c3 {[%emt 0:00:30]} 50. Qa5 {[%emt 0:00:00]} Rb3 {[%emt 0:00:00]} 51. Qe5 {[%emt 0:00:47]} Kb1 {[%emt 0:01:35]} 52. Qe1+ {[%emt 0:01:54]} Kb2 {[%emt 0:00:08]} 53. Qe5 {[%emt 0:00:50]} Kb1 {[%emt 0:00:05]} 54. Qe1+ {[%emt 0:01:14]} Kb2 {[%emt 0:00:02]} 55. Qe5 {[%emt 0:00:36]} Kb1 {[%emt 0:00:37]} 56. Qd5 {[%emt 0:00:28]} 1/2-1/2

[Event "8th Mersin Open 2024"]
[Site "Mersin"]
[Date "2024.11.11"]
[Round "2"]
[White "Aliyev, Ravan"]
[Black "Bayramov, Vugar"]
[Result "1-0"]
[ECO "A36"]
[WhiteElo "2338"]
[BlackElo "2133"]
[Annotator "RC"]
[PlyCount "90"]
[EventDate "2024.11.10"]
[EventType "swiss"]
[EventCountry "TUR"]
[SourceTitle "playchess.com"]
[Source "ChessBase"]
[SourceQuality "1"]
[TimeControl "5400+30"]

1. c4 {[%emt 0:03:00]} c5 {[%emt 0:01:00]} 2. Nc3 {[%emt 0:00:00]} d6 {[%emt 0:00:00]} 3. g3 {[%emt 0:00:00]} Nc6 {[%emt 0:00:00]} 4. Bg2 {[%emt 0:00:00]} g6 {[%emt 0:00:30]} 5. d3 {[%emt 0:01:00]} Bg7 {[%emt 0:00:00]} 6. Qd2 {[%emt 0:00:00]} e6 {[%emt 0:02:00]} 7. b3 {[%emt 0:00:00]} Nge7 {[%emt 0:00:30]} 8. Bb2 {[%emt 0:00:30]} O-O {[%emt 0:00:00]} 9. Nf3 {[%emt 0:05:30]} d5 {[%emt 0:02:00]} 10. cxd5 {[%emt 0:09:30]} exd5 {[%emt 0:00:30]} 11. Na4 {[%emt 0:00:30]} Bxb2 {[%emt 0:14:30]} 12. Qxb2 {[%emt 0:00:00]} d4 {[%emt 0:10:30]} 13. O-O {[%emt 0:01:00]} Qd6 {[%emt 0:14:30]} 14. Rac1 {[%emt 0:04:30]} b6 {[%emt 0:01:30]} 15. Qd2 {[%emt 0:01:30]} Be6 {[%emt 0:05:30]} 16. Nb2 {[%emt 0:02:30]} Rae8 {[%emt 0:04:30]} 17. Nc4 {[%emt 0:14:30]} Bxc4 {[%emt 0:02:30]} 18. bxc4 {[%emt 0:00:30]} Nf5 {[%emt 0:03:30]} 19. Bh3 {[%emt 0:02:30]} Ng7 {[%emt 0:02:30]} 20. Rfe1 {[%emt 0:09:30]} Re7 {[%emt 0:00:30]} 21. Bg2 {[%emt 0:08:30]} Nh5 {[%emt 0:09:30]} 22. Ng5 {[%emt 0:10:30]} Kg7 {[%emt 0:05:30]} 23. Ne4 {[%emt 0:10:42]} Qc7 {[%emt 0:04:07]} 24. Bf3 {[%emt 0:02:35]} f5 {[%emt 0:02:42]} 25. Ng5 {[%emt 0:01:08]} Nf6 {[%emt 0:00:42]} 26. Nh3 {[%emt 0:00:23]} Ne5 {[%emt 0:01:30]} 27. Nf4 {[%emt 0:03:45]} Qd6 {[%emt 0:01:29]} 28. h4 {[%emt 0:02:03]} Rfe8 {[%emt 0:00:20]} 29. Bg2 {[%emt 0:02:03]} Neg4 {[%emt 0:00:49]} 30. a4 {[%emt 0:01:27]} h6 {[%emt 0:02:32]} 31. a5 {[%emt 0:00:19]} Nxf2 {[%emt 0:04:21]} 32. Kxf2 {[%emt 0:00:43]} g5 {[%emt 0:00:23]} 33. hxg5 {[%emt 0:00:21]} Ng4+ {[%emt 0:01:02]} 34. Kg1 {[%emt 0:02:09]} hxg5 {[%emt 0:00:48]} 35. e4 {[%emt 0:04:18]} gxf4 {[%emt 0:03:46]} 36. Qxf4 {[%emt 0:00:09]} Qxf4 {[%emt 0:00:47]} 37. gxf4 {[%emt 0:00:03]} fxe4 {[%emt 0:00:39]} 38. Rxe4 {[%emt 0:01:20]} Ne3 {[%emt 0:00:41]} 39. Rxe7+ {[%emt 0:00:43]} Rxe7 {[%emt 0:00:05]} 40. axb6 {[%emt 0:00:41]} axb6 {[%emt 0:00:06]} 41. Be4 {[%emt 0:00:03]} Kf6 {[%emt 0:00:52]} 42. Kf2 {[%emt 0:00:33]} Re8 {[%emt 0:01:09]} 43. Rh1 {[%emt 0:00:30]} Nxc4 {[%emt 0:00:40]} 44. Bc6 {[%emt 0:00:18]} Rc8 {[%emt 0:00:57]} 45. dxc4 {[%emt 0:00:35]} Kf5 {[%emt 0:00:03]} 1-0